Cogmind - Beta 9.6 @@@ ROGUE MODE // 2020.07.11 @ 20:03:20 Player: Bacarospus Result: Destroyed by S-10 Pest with Light Assault Rifle Performance ------------- Evolutions (0) 0 Regions Visited (1) 200 Robots Destroyed (13) 65 Value Destroyed (294) 294 Prototype IDs (0) 0 Alien Tech Used (0) 0 Bonus (0) 0 TOTAL SCORE: 559 Bonus ------- None Cogmind --------- Core Integrity 0/250 Matter 218/300 Energy 8/100 System Corruption 0% Temperature Cool (21) Movement Core (50) Location -10/Materials Parts ------- > --- POWER (1) -------- (None) > --- PROPULSION (2) --- (None) > --- UTILITY (2) ------ Seismic Analyzer > --- WEAPON (2) ------- Spread Laser > --- INVENTORY (4) ---- Improved Sensor Array Spread Laser Datajack Peak State ------------ > --- POWER ------------ Light Nuclear Core > --- PROPULSION ------- Aluminum Leg Aluminum Leg > --- UTILITY ---------- Seismic Analyzer ECM Suite > --- WEAPON ----------- Spread Laser Light Cannon > --- INVENTORY -------- Improved Sensor Array Datajack [Rating: 10] Favorites ----------- Power Light Ion Engine Engine Light Ion Engine Power Core Light Nuclear Core Propulsion Aluminum Leg Leg Aluminum Leg Flight Unit Flight Unit Utility Seismic Analyzer Device ECM Suite Processor Seismic Analyzer Weapon Medium Laser Energy Gun Medium Laser Ballistic Cannon Light Cannon Special Weapon Mining Laser Build | -11 -10 ------- Run | Scr Mat Slots Evolved . | . . Power . | . . Propulsion . | . . Utility . | . . Weapon . | . . Parts Attached 21 | 7 14 Power 2 | . 2 Engine 1 | . 1 Core 1 | . 1 Reactor . | . . Propulsion 7 | 2 5 Treads . | . . Leg 6 | 2 4 Wheel . | . . Hover . | . . Flight 1 | . 1 Utility 3 | 1 2 Device 2 | . 2 Storage . | . . Processor 1 | 1 . Hackware . | . . Protection . | . . Artifact . | . . Weapon 9 | 4 5 Energy Gun 7 | 3 4 Energy Cannon . | . . Ballistic Gun . | . . Ballistic Cannon 1 | . 1 Launcher . | . . Special Weapon 1 | 1 . Impact Weapon . | . . Slashing Weapon . | . . Piercing Weapon . | . . Special Melee Weapon . | . . Unidentified Prototypes . | . . Parts Lost 9 | . 9 Power 1 | . 1 Propulsion 3 | . 3 Utility . | . . Weapon 5 | . 5 Highest Loss Streak 6 | . 6 Average Slot Usage (%) 86 | . 86 Engine 10 | . 10 Leg 25 | . 25 Device 10 | . 10 Processor 14 | . 14 Energy Gun 18 | . 18 Ballistic Cannon 6 | . 6 Naked Turns . | . . Heaviest Build 12 | 4 12 Greatest Support 20 | 20 20 Greatest Overweight (x) 1 | . 1 Average Overweight (x) . | . . Largest Inventory Capacity 4 | 4 4 Average Capacity 4 | 4 4 Most Carried 4 | 4 4 Average Carried 2 | 3 2 Final Capacity 4 | 4 4 Final Carried 3 | 3 3 Class Distribution -------------------- 100% | Mutant Dominant Class ---------------- Mutant | -10/Materials Resources | -11 -10 ----------- Run | Scr Mat Matter Collected 399 | 221 178 Remotely . | . . Salvage Created 317 | 44 273 Parts 25 | 5 20 Haulers Intercepted . | . . Recyclers Shooed . | . . Parts Field Recycled . | . . Retrieved Matter . | . . Parts Self-Destructed . | . . Prevented . | . . Kills | -11 -10 ------- Run | Scr Mat Combat Hostiles Destroyed 10 | 1 9 Guns 7 | 1 6 Cannons 3 | . 3 Classes Destroyed 5 | 2 3 Worker 1 | . 1 Tunneler 1 | 1 . Watcher 1 | . 1 Swarmer 4 | . 4 Grunt 6 | 1 5 Best Kill Streak 3 | 2 3 Combat Bots Only 3 | 1 3 Max Kills in Single Turn 1 | 1 1 Gunslinging . | . . Exploded . | . . Melee . | . . Uniques/NPCs Destroyed . | . . Combat | -11 -10 -------- Run | Scr Mat Damage Taken 940 | 12 928 Core 257 | . 257 Absorbed by Shields . | . . Core Remaining (%) 100 | 100 . Volleys Fired 51 | 3 48 Largest 2 | 2 2 Hottest 100 | 100 100 Shots Fired 85 | 6 79 Gun 56 | 6 50 Cannon 29 | . 29 Launcher . | . . Special . | . . Kinetic 29 | . 29 Thermal 56 | 6 50 Explosive . | . . Electromagnetic . | . . Robot Hit Streak 8 | 2 8 Robot Miss Streak 6 | 2 6 Penetration Max . | . . Secondary Targets . | . . Shots Hit Robots 49 | 2 47 Core Hits 27 | 3 24 Critical Hits . | . . Critical Kills . | . . Critical Parts Destroyed . | . . Melee Attacks . | . . Impact . | . . Slashing . | . . Piercing . | . . Sneak Attacks . | . . Combat Hostiles . | . . Follow-up Attacks . | . . Damage Inflicted 642 | 62 580 Guns 380 | 62 318 Cannons 262 | . 262 Explosions . | . . Melee . | . . Ramming . | . . Kinetic 262 | . 262 Thermal 380 | 62 318 Explosive . | . . Electromagnetic . | . . Impact . | . . Slashing . | . . Piercing . | . . Highest Corruption . | . . Average Corruption . | . . Corruption Purged . | . . Overload Shots . | . . Overflow Damage 17 | . 17 Projectiles 17 | . 17 Explosions . | . . Melee . | . . Knockbacks 8 | . 8 Impact . | . . Kinetic 8 | . 8 Secondary . | . . Self-Inflicted Damage . | . . Shots . | . . Rammed . | . . Targets Rammed . | . . Kicked . | . . Crushed . | . . Highest Temperature 396 | 54 396 Average Temperature 113 | 25 119 Received Heat Transfer 240 | 6 234 Effects 2 | . 2 Shutdowns 1 | . 1 Interference 1 | . 1 Siege Activations . | . . Robots Corrupted . | . . Combat Hostiles . | . . Parts Fried . | . . Impact Corruptions . | . . Robots Melted . | . . Combat Hostiles . | . . Parts Melted . | . . Heat Transferred 926 | 185 741 Parts Sabotaged . | . . Parts Stolen . | . . Parts Stripped . | . . Power Chain Reactions . | . . Missiles Intercepted . | . . Alert | -11 -10 ------- Run | Scr Mat Peak Influence 133 | 25 133 Average Influence 44 | 6 50 Maximum Alert Level . | . . Low Security (%) 100 | 100 100 Level 1 . | . . Level 2 . | . . Level 3 . | . . Level 4 . | . . Level 5 . | . . High Security . | . . Max Security . | . . Squads Dispatched 2 | . 2 Investigation . | . . Extermination . | . . Reinforcement 2 | . 2 Assault . | . . Garrison . | . . Intercept . | . . Construction Impeded . | . . Haulers Reinforced . | . . Stealth | -11 -10 --------- Run | Scr Mat Distress Signals 3 | . 3 Communications Jammed . | . . Distress Signals . | . . Times Spotted 23 | 1 22 Peak Tracking Total 5 | 1 5 Tactical Retreats 1 | . 1 Traps | -11 -10 ------- Run | Scr Mat Traps Triggered . | . . Indirectly . | . . Trap Hack Attempts . | . . Triggered . | . . Disarmed . | . . Reprogrammed . | . . Reused . | . . Traps Extracted . | . . Installed . | . . Triggered . | . . Machines | -11 -10 ---------- Run | Scr Mat Machines Disabled . | . . Max in Single Turn . | . . Machines Sabotaged . | . . Garrisons Compromised . | . . Overloaded Fab Kills . | . . Fab Network Shutdowns . | . . Hacking | -11 -10 --------- Run | Scr Mat Machines Accessed 5 | . 5 Terminals 3 | . 3 Fabricators . | . . Repair Stations . | . . Recycling Units 2 | . 2 Scanalyzers . | . . Garrison Access . | . . Total Hacks 13 | . 13 Successful 7 | . 7 Failed 6 | . 6 Catastrophic . | . . Database Lockouts . | . . Manual . | . . Terminals 10 | . 10 Fabricators . | . . Repair Stations . | . . Recycling Units 3 | . 3 Scanalyzers . | . . Garrison Access . | . . Terminal Hacks 4 | . 4 Record 2 | . 2 Emergency Access Points 1 | . 1 Zone Layout 1 | . 1 Fabricator Hacks . | . . Repair Station Hacks . | . . Recycling Unit Hacks 3 | . 3 Recycle Component 2 | . 2 Report Inventory 1 | . 1 Scanalyzer . | . . Garrison Access Hacks . | . . Unauthorized Hacks . | . . Terminals . | . . Fabricators . | . . Repair Stations . | . . Recycling Units . | . . Scanalyzers . | . . Garrison Access . | . . Data Cores Recovered . | . . Used . | . . Hacking Detections 4 | . 4 Full Trace Events . | . . Feedback Events . | . . Feedback Blocked . | . . Robot Schematics Acquired . | . . Robots Built . | . . Matter . | . . Time . | . . Total Robot Build Rating . | . . Part Schematics Acquired . | . . Parts Built . | . . Matter . | . . Time . | . . Total Part Build Rating . | . . Parts Repaired . | . . Time . | . . Parts Recycled 2 | . 2 Recycled Matter . | . . Retrieved Matter . | . . Retrieved Components . | . . Parts Scanalyzed . | . . Part Schematics Acquired . | . . Parts Damaged . | . . Bothacking | -11 -10 ------------ Run | Scr Mat Used RIF Installer . | . . Robots Hacked . | . . Non-combat . | . . Combat . | . . Robot Hacks Applied . | . . Relay Couplers Released . | . . Robots Rewired . | . . Allies Hacked . | . . Hacks Repelled . | . . Allies | -11 -10 -------- Run | Scr Mat Total Allies . | . . Largest Group . | . . Highest-Rated Group . | . . Highest-Rated Ally . | . . Total Orders . | . . Ally Attacks . | . . Total Damage . | . . Kills . | . . Allies Corrupted . | . . Allies Melted . | . . Intel | -11 -10 ------- Run | Scr Mat Robot Analysis Total . | . . Derelict Logs Recovered . | . . Drone Launches . | . . Drone Recoveries . | . . Exploration | -11 -10 ------------- Run | Scr Mat Turns Passed 771 | 108 663 Spaces Moved 481 | 81 400 Core 47 | 24 23 Treads . | . . Legs 422 | 57 365 Wheels . | . . Hover . | . . Flight 12 | . 12 Fastest Speed 40 | 50 40 Average Speed 112 | 99 115 Slowest Speed 120 | 120 120 Overloaded Moves . | . . Propulsion Burnouts . | . . Robots Hopped . | . . Cave-ins Triggered . | . . Exploration Rate (%) 29 | 6 52 Regions Visited 1 Branch Regions . Pre-discovered Areas . | . . Known Exits Taken . | . . Unknown Exits Taken 1 | 1 . Scrap Searched . | . . Spaces Dug . | . . Terrain Destroyed . | . . Melee . | . . Projectile . | . . AOE . | . . Actions | -11 -10 --------- Run | Scr Mat Total 629 | 103 526 Wait 34 | . 34 Move 480 | 80 400 Hop . | . . Pick Up 27 | 10 17 Fast Attach 5 | 1 4 Attach 15 | 6 9 Detach . | . . Swap 1 | . 1 Drop 16 | 3 13 Fire 51 | 3 48 Melee . | . . Ram . | . . Kick . | . . Crush . | . . Escape Stasis . | . . Rewire . | . . Trap . | . . Miscellaneous . | . . Route ------- -11/Scrapyard -10/Materials (discovered 2 exits: [*Mat x2]) History --------- Turn | Location | Event 2 | -11/Scrapyard | Met Revision 17 71 | -11/Scrapyard | Discovered new exit (range 8) 109 | -11/Scrapyard | Entered Materials 267 | -10/Materials | Discovered new exit (range 17) 305 | -10/Materials | Build established: Mutant 465 | -10/Materials | Discovered new exit (range 8) 724 | -10/Materials | Core integrity fell below 50% 750 | -10/Materials | Core integrity fell below 20% 772 | -10/Materials | Destroyed by S-10 Pest with Light Assault Rifle Last Messages --------------- Lgt. Nuclear Core destroyed. Aluminum Leg destroyed. G-34 Mercenary destroyed. K-01 Serf collects debris. S-10 Pest destroyed. K-01 Serf collects debris. Lgt. Cannon destroyed. K-01 Serf destroyed. Overheating: System interference. Seismic Analyzer temporarily disabled. Spread Laser destroyed. To regain energy, simply wait via the mouse wheel '.', or KP5. Also make sure your per-turn energy generation is a net positive, and consider deactivating power-draining parts if not. Aluminum Leg destroyed. Dropped ECM Suite. Acquired Spread Laser. Aluminum Leg destroyed. S-10 Pest destroyed. [Achievement: First Step to Greatness] Map ----- +----------------------------------------------------+ | ??????????# #???????????????# # #???? | | ??????????# #???????????????# ######???? | | ??????????# #???????????????# #????????? | | ??????????# #???????????????+ #########+ | | ??????????# #?????????????? # = = | | ??????????# #??????????????/# *%! %! | | ??????????# #?????????????/?# ==% | | ??????????? +?????????????/?# *[### #### | | ??????????? #???????????? ??# !#?? #??? | | ??????????? #???????????????# #??? #??? | | ??????????????????????????????# #???? #??? | | ??????????????????????????????# #?????#??? | | ??????????????????????????????# #????????? | | ?????????????????????????????##! ##???????? | | ????????????????????########## #???????? | | ????????????????????# #???????? | | ????????????????????# ######## T #???????? | | ????????????????????# #??????# #???????? | | ????????????????????# #??????# #???????? | | ????????????????????# #???######+######????? | | ????????????????????# ##### #????? | | ????????????????????# + #????? | | ?????????????????####s ### """ """ #????? | | ?????????????????# *%= #?# """ """ #????? | | ?????????????????# [!!!!#?# """ """ #????? | | ?????????????????# @! !!#?# #????? | | ?????????????????########?# #????? | | ??????????????????????????#############????? | | | | | | | | | | | | | | | | | | | | | | | | | | | | | | | | | | | | | | | | | | | | | +----------------------------------------------------+ Best States ------------- Heat Dissipation 25 Energy Generation 14 Energy Capacity 160 Matter Stores 300 Matter Capacity 300 Sight Range 16 Terrain Scan Density 60 ECM Strength 1 Evasion (%) 50 Item Schematics ----------------- None Robot Schematics ------------------ None Fabricated ------------ Nothing Alien Tech Used ----------------- None Achievements -------------- First Step to Greatness Storm Trooper Challenges ------------ None Game ------ Seed LargeSupercompositeWarhead Manual? 0 Play Time 00:22:32 Cumulative 0.7 hours Start 2020.07.11 @ 18:21:03 End 2020.07.11 @ 20:03:20 Sessions 3 Manual Loads 0 Difficulty Rogue Special Mode None Game No. 1 Rogue 1 Adventurer 0 Explorer 0 Win Type - Total 0 Types 0/0/0/0/0/0/0 Lore% 0 Gallery% 1 Achievement% 1 Wizard Run 0 Options --------- ASCII 0 Keyboard 0 Movement Mouse Keybinds 0 Fullscreen 1 Font 18/X11 Map View 76x50 Tactical HUD 0 Map Filters NONE Filters NONE Steam 1 RUN: 537e23d7-91e2-405a-9dc9-84d3b2df6502